bitfinex/quotes_ETHUSD_20251124
["timestamp","ask_amount","ask_price","bid_price","bid_amount"]
[1763989313078,0.66313978,2809.7,2809.6,0.001]
[1763989313387,1.14303978,2809.7,2809.6,0.001]
[1763989313898,0.66313978,2809.7,2809.6,0.001]
[1763989314384,1.14303978,2809.7,2809.6,0.001]
[1763989314585,1.74498172,2809.7,2809.6,0.001]
[1763989317106,2.65197436,2809.7,2809.6,0.001]
[1763989317292,2.98491571,2809.7,2809.6,0.001]
[1763989318775,2.38297377,2809.7,2809.6,0.001]
[1763989320619,2.38217377,2809.7,2809.6,0.001]
[1763989321131,9.80924813,2809.7,2809.6,0.001]
[1763989321278,3.15135991,2809.7,2809.6,0.001]
[1763989323971,0.99528113,2809.7,2809.6,0.001]
[1763989325309,1.47518113,2809.7,2809.6,0.001]
[1763989328525,0.52028113,2809.7,2809.6,0.4649]
[1763989330206,1.47518113,2809.7,2809.6,0.001]
[1763989330409,1.69963034,2809.7,2809.6,0.001]
[1763989334738,0.99528113,2809.7,2809.6,0.001]
[1763989335038,1.47518113,2809.7,2809.6,0.001]
[1763989336821,0.52028113,2809.7,2809.6,0.4649]
[1763989337233,0.18733978,2809.7,2809.6,0.4649]
[1763989337924,0.52117976,2809.7,2809.6,0.4649]
[1763989338338,0.18733978,2809.7,2809.6,0.4649]
[1763989343646,0.18733978,2809.7,2809.6,1.358804]
[1763989344249,0.18653978,2809.7,2809.6,1.458804]
[1763989345078,0.18653978,2809.7,2809.6,0.870404]
[1763989346455,0.66953978,2809.7,2809.6,0.001]
[1763989346683,0.18653978,2809.7,2809.6,0.4695]
[1763989347786,0.18653978,2809.7,2809.6,0.9579]
[1763989347949,0.18653978,2809.7,2809.6,1.463404]
[1763989349184,0.0004,2809.7,2809.6,1.463404]
[1763989352358,0.0004,2809.7,2809.6,2.06003792]
[1763989353672,0.0004,2809.7,2809.6,1.463404]
[1763989358770,0.0004,2809.7,2809.6,1.0579]
[1763989359167,0.0004,2809.7,2809.6,1.463404]
[1763989361024,0.0004,2809.7,2809.6,1.49899625]
[1763989361324,0.0004,2809.7,2809.6,1.463404]
[1763989361475,0.0004,2809.7,2809.6,1.49899625]
[1763989361677,0.0004,2809.7,2809.6,2.68607136]
[1763989361919,0.0004,2809.7,2809.6,1.688404]
[1763989362931,0.0004,2809.7,2809.6,5.24762951]
[1763989363932,0.0004,2809.7,2809.6,1.688404]
[1763989364631,0.0004,2809.7,2809.6,2.690404]
[1763989364832,0.0004,2809.7,2809.6,1.200004]
[1763989365131,0.0004,2809.7,2809.6,0.7945]
[1763989365339,0.0004,2809.7,2809.6,0.97425]
[1763989365630,0.0004,2809.7,2809.6,1.379754]
[1763989365798,0.0004,2809.7,2809.6,0.18075]
[1763989365799,0.4834,2809.7,2809.6,0.18075]
[1763989365998,0.0004,2809.7,2809.6,0.001]
[1763989366337,0.0004,2809.7,2809.6,0.406504]
[1763989367138,0.0004,2809.7,2809.6,0.994904]
[1763989367935,0.1848,2809.9,2809.7,0.405504]
[1763989369033,0.4723,2809.8,2809.7,0.405504]
[1763989370047,1.002,2810.0,2809.7,0.876404]
[1763989370264,1.4659,2810.0,2809.7,0.876404]
[1763989370424,1.4659,2810.0,2809.7,0.405504]
[1763989371357,0.4717,2809.8,2809.6,0.001]
[1763989371534,0.3768,2809.7,2809.6,0.001]
[1763989372252,1.002,2810.0,2809.8,0.1]
[1763989373322,0.4717,2809.9,2809.8,0.505504]
[1763989373953,0.9356,2809.9,2809.6,0.001]
[1763989374160,0.3768,2809.7,2809.6,0.001]
[1763989374546,0.8407,2809.7,2809.6,0.001]
[1763989374863,1.002,2810.0,2809.6,0.4719]
[1763989375035,0.4639,2809.9,2809.6,0.001]
[1763989375632,1.002,2810.0,2809.6,0.001]
[1763989376157,1.002,2810.0,2809.8,0.1]
[1763989376727,1.002,2810.0,2809.9,0.405504]
[1763989376926,1.002,2810.0,2809.9,0.876404]
[1763989377226,1.002,2810.0,2809.9,0.976404]
[1763989379075,1.9376,2810.0,2809.6,0.001]
[1763989379234,0.4717,2809.7,2809.6,0.001]
[1763989379753,0.9356,2809.7,2809.6,0.001]
[1763989380159,0.1947,2809.9,2809.6,0.001]
[1763989380359,1.002,2810.0,2809.6,0.4719]
[1763989380541,0.4639,2809.9,2809.6,0.001]
[1763989380743,0.4717,2809.7,2809.6,0.001]
[1763989381168,0.9356,2809.7,2809.6,0.001]
[1763989385152,1.002,2810.0,2809.7,0.1]
[1763989385559,0.4717,2809.8,2809.7,0.1]
[1763989385765,1.002,2810.0,2809.7,0.1]
[1763989385766,1.4659,2810.0,2809.7,0.1]
[1763989386385,1.002,2810.0,2809.7,0.405504]
[1763989387389,1.4659,2810.0,2809.7,0.405504]
[1763989387590,0.4717,2809.8,2809.7,0.405504]
[1763989387782,0.4717,2809.8,2809.6,0.001]
[1763989388093,0.8407,2809.7,2809.6,0.001]
[1763989389290,1.42749513,2809.7,2809.6,0.001]
[1763989389954,1.76120109,2809.7,2809.6,0.001]
[1763989390962,1.17440596,2809.7,2809.6,0.001]
[1763989391157,0.3768,2809.7,2809.6,0.001]
[1763989391365,1.4659,2810.0,2809.6,0.001]
[1763989391898,0.4717,2809.7,2809.6,0.001]
[1763989392401,0.002,2809.7,2809.6,0.4719]
[1763989392595,0.002,2809.7,2809.6,0.877404]
[1763989393059,0.002,2809.7,2809.6,1.454704]
[1763989393500,0.4737,2809.7,2809.6,0.406504]
[1763989393798,0.002,2809.7,2809.6,0.406504]
[1763989394161,0.002,2809.7,2809.6,0.877404]
[1763989396281,0.002,2809.7,2809.6,0.977404]
[1763989396601,0.4737,2809.7,2809.6,0.406504]
[1763989396789,0.9376,2809.7,2809.6,0.406504]
[1763989398474,0.9376,2809.7,2809.6,0.001]
[1763989399895,1.27140632,2809.7,2809.6,0.001]
[1763989401794,3.70556252,2809.7,2809.6,0.001]
[1763989412034,4.47326006,2809.7,2809.6,0.001]
[1763989414057,3.70556252,2809.7,2809.6,0.001]
[1763989415467,3.70476252,2809.7,2809.6,0.001]
[1763989416577,3.70392308,2809.7,2809.6,0.001]
[1763989417870,2.17675952,2809.7,2809.6,0.001]
[1763989419463,1.24115952,2809.7,2809.6,0.001]
[1763989419663,1.72575952,2809.7,2809.6,0.001]
[1763989420269,0.90819264,2809.7,2809.6,0.4906]
[1763989420571,1.39279264,2809.7,2809.6,0.001]
[1763989420772,1.72576104,2809.7,2809.6,0.001]
[1763989420970,2.17976104,2809.7,2809.6,0.001]
[1763989422304,1.72576104,2809.7,2809.6,0.001]
[1763989422464,1.24116104,2809.7,2809.6,0.4906]
[1763989423581,1.24116104,2809.7,2809.6,0.9594]
[1763989423983,1.42729252,2809.7,2809.6,0.4906]
[1763989425871,1.4276278,2809.7,2809.6,0.4906]
[1763989426065,1.4276278,2809.7,2809.6,0.9594]
[1763989426301,1.4276278,2809.7,2809.6,0.4906]
[1763989431754,1.51213516,2809.7,2809.6,0.001]
[1763989432051,0.52063516,2809.7,2809.6,0.4906]
[1763989434032,0.52063516,2809.7,2809.6,0.001]
[1763989434033,1.51213516,2809.7,2809.6,0.001]
[1763989434199,1.75424794,2809.7,2809.6,0.001]
[1763989434526,6.63188146,2809.7,2809.6,0.001]
[1763989435196,5.39826868,2809.7,2809.6,0.001]
[1763989435400,0.52063516,2809.7,2809.6,0.001]
[1763989435926,0.52063516,2809.7,2809.6,0.4906]
[1763989436415,0.18733148,2809.7,2809.6,0.4906]
[1763989439315,0.18653148,2809.7,2809.6,0.4906]
[1763989439517,0.18653148,2809.7,2809.6,0.9802]
[1763989439843,0.18653148,2809.7,2809.6,0.001]
[1763989440246,0.18653148,2809.7,2809.6,0.4906]
[1763989441431,0.18653148,2809.7,2809.6,0.9802]
[1763989441635,0.18653148,2809.7,2809.6,1.385704]
[1763989441852,0.18653148,2809.7,2809.6,1.485704]
[1763989443622,0.0004,2809.7,2809.6,1.485704]
[1763989444316,0.0004,2809.7,2809.6,1.45539504]
[1763989445984,0.0004,2809.7,2809.6,1.70133454]
[1763989450537,0.0004,2809.7,2809.6,6.57896806]
[1763989452796,0.0004,2809.7,2809.6,1.70133454]
[1763989452978,0.0004,2809.7,2809.6,2.70333454]
[1763989454692,0.0004,2809.7,2809.6,12.41999747]
[1763989455064,0.0004,2809.7,2809.6,8.86077196]
[1763989455383,0.0004,2809.7,2809.6,2.11373454]
[1763989455582,0.0004,2809.7,2809.6,1.86779504]
[1763989455797,0.499,2809.7,2809.6,1.002]
[1763989455960,0.499,2809.7,2809.5,0.001]
[1763989456157,0.8417,2809.6,2809.5,0.001]
[1763989456970,0.0004,2809.7,2809.5,0.001]
[1763989457405,0.4986,2809.6,2809.5,0.001]
[1763989458464,0.9915,2809.6,2809.5,0.001]
[1763989459928,0.0004,2809.7,2809.5,0.4613]
[1763989460115,0.0004,2809.7,2809.5,0.5613]
[1763989460505,0.0004,2809.7,2809.6,0.865804]
[1763989461194,0.0004,2809.7,2809.6,0.405504]
[1763989461195,0.4771,2809.7,2809.6,0.405504]
[1763989461387,0.0004,2809.7,2809.6,0.405504]
[1763989462923,0.0004,2809.7,2809.6,0.965804]
[1763989463523,0.0016,2809.9,2809.6,0.965804]
[1763989463722,0.4767,2809.7,2809.6,0.405504]
[1763989465821,0.0016,2809.9,2809.7,0.1]
[1763989466120,0.0016,2809.9,2809.7,0.5603]
[1763989466321,0.0016,2809.9,2809.8,0.4603]
[1763989466623,0.0016,2809.9,2809.8,0.865804]
[1763989467513,0.0016,2809.9,2809.8,1.426104]
[1763989467820,0.0016,2809.9,2809.8,1.1544444]
[1763989468025,0.0016,2809.9,2809.8,1.6147444]
[1763989468626,0.0016,2809.9,2809.8,10.19916134]
[1763989468805,0.0016,2809.9,2809.8,6.62457835]
[1763989469138,0.0016,2809.9,2809.8,6.16427835]
[1763989469304,0.0016,2809.9,2809.8,1.13883357]
[1763989469504,0.0016,2809.9,2809.8,1.58353357]
[1763989470998,0.0016,2809.9,2809.8,1.13883357]
[1763989471707,0.0016,2809.9,2809.8,1.03883357]
[1763989472094,0.0016,2809.9,2809.8,1.13883357]
[1763989472730,0.4783,2809.9,2809.8,0.1886404]
[1763989472930,0.4783,2809.9,2809.7,0.5603]
[1763989473291,0.0016,2809.9,2809.8,0.405504]
[1763989473800,0.4783,2809.9,2809.8,0.405504]
[1763989474317,0.0016,2809.9,2809.8,1.394904]
[1763989474532,0.0016,2809.9,2809.8,1.5804244]
[1763989476158,0.0016,2809.9,2809.8,1.1357244]
[1763989476521,1.1247,2809.9,2809.7,0.1]
[1763989476733,0.6654,2809.9,2809.7,0.1]
[1763989476932,0.6654,2809.9,2809.8,0.405504]
[1763989477137,0.6654,2809.9,2809.7,0.1]
[1763989479662,0.4279,2809.8,2809.7,0.1]
[1763989480464,0.1887,2809.9,2809.8,0.405504]
[1763989480957,0.4783,2809.9,2809.8,0.405504]
[1763989481364,0.0016,2809.9,2809.8,0.405504]
[1763989483175,0.0016,2809.9,2809.8,0.850204]
[1763989483364,0.0016,2809.9,2809.8,0.950204]
[1763989485878,0.0016,2809.9,2809.8,1.394904]
[1763989486777,0.0008,2809.9,2809.8,1.89031608]
[1763989486977,0.0008,2809.9,2809.8,1.394904]
[1763989487366,0.0008,2809.9,2809.8,0.950204]
[1763989487983,0.0008,2809.9,2809.8,1.394904]
[1763989488347,0.0008,2809.9,2809.8,0.950204]
[1763989490263,0.0008,2809.9,2809.8,1.394904]
[1763989491190,0.0008,2809.9,2809.8,1.89031439]
[1763989492594,0.0008,2809.9,2809.8,1.394904]
[1763989493905,0.0008,2809.9,2809.8,4.95387616]
[1763989494105,0.0008,2809.9,2809.8,1.394904]
[1763989495303,0.0008,2809.9,2809.8,4.95387616]
[1763989495705,0.0008,2809.9,2809.8,1.394904]
[1763989495867,0.0008,2809.9,2809.8,1.72529366]
[1763989496075,0.0008,2809.9,2809.8,1.28059366]
[1763989496487,0.0008,2809.9,2809.8,1.72529366]
[1763989496887,0.0008,2809.9,2809.8,1.72629366]
[1763989499642,0.0008,2809.9,2809.8,5.28526582]
[1763989499836,0.0008,2809.9,2809.8,1.72629366]
[1763989500529,0.0008,2809.9,2809.8,6.22784818]
[1763989500730,0.002,2810.2,2810.1,18.047628]
[1763989501068,0.6637,2811.9,2811.8,0.1]
[1763989501550,0.6637,2811.9,2811.8,0.505504]
[1763989501551,1.1178,2811.9,2811.8,0.505504]
[1763989502132,1.1178,2811.9,2811.8,0.405504]
[1763989503005,1.1178,2811.9,2810.9,0.405504]
[1763989503209,0.475,2811.8,2811.1,0.405504]
[1763989503735,0.4541,2811.2,2811.1,0.405504]
[1763989504044,0.4541,2811.2,2811.1,0.505504]
[1763989504245,0.9295,2811.2,2811.1,0.505504]
[1763989504443,0.4754,2811.6,2811.4,0.1]
[1763989504612,0.4541,2811.5,2810.5,0.405504]
[1763989504831,0.4541,2811.5,2809.4,0.001]
[1763989504832,0.4541,2810.6,2810.1,0.6312]
[1763989505249,0.1802,2810.8,2810.5,0.1]
[1763989505544,0.1802,2810.8,2810.6,0.1]
[1763989505945,0.4541,2810.7,2810.6,0.1]
[1763989506277,0.4754,2811.2,2810.7,0.992104]
[1763989506457,0.4754,2811.2,2810.9,0.405504]
[1763989506834,0.4541,2811.0,2810.9,0.405504]
[1763989507235,0.9295,2811.0,2810.9,0.405504]
[1763989510768,0.9287,2811.0,2810.9,0.405504]
[1763989511470,0.4754,2811.3,2811.0,0.405504]
[1763989511670,0.4754,2811.3,2811.1,0.1]
[1763989511993,0.4754,2811.3,2810.5,0.4745]
[1763989511994,0.4754,2811.3,2811.2,0.1]
[1763989512194,0.9295,2811.3,2811.2,0.1]
[1763989512580,0.1883,2811.9,2810.7,0.405504]
[1763989512581,0.4754,2811.6,2810.8,0.03557705]
[1763989512786,0.4754,2811.6,2810.9,0.405504]
[1763989512987,0.4754,2811.6,2811.5,0.505504]
[1763989513421,0.9295,2811.6,2811.5,0.505504]
[1763989515430,0.4541,2811.6,2811.5,0.505504]
[1763989515720,0.002,2811.7,2811.6,0.405504]
[1763989515889,0.002,2811.7,2811.6,0.505504]
[1763989516527,0.4561,2811.7,2811.6,0.505504]
[1763989516997,0.002,2811.7,2811.6,0.505504]
[1763989517396,0.002,2811.7,2811.6,0.992104]
[1763989518400,0.002,2811.7,2811.6,1.466604]
[1763989520225,0.002,2811.7,2811.6,1.477504]
[1763989520526,0.002,2811.7,2811.6,5.25919769]
[1763989520688,0.002,2811.7,2811.6,6.89965798]
[1763989520883,0.002,2811.7,2811.6,7.00965798]
[1763989521318,0.002,2811.7,2811.6,3.45296429]
[1763989521825,0.002,2811.7,2811.6,7.91665062]
[1763989522519,0.002,2811.7,2811.6,4.35995693]
[1763989522719,0.002,2811.7,2811.6,3.87455693]
[1763989522892,0.002,2811.7,2811.6,2.23409664]
[1763989523317,0.002,2811.7,2811.6,2.71949664]
[1763989523487,0.002,2811.7,2811.6,6.27619033]
[1763989523692,0.002,2811.7,2811.6,2.71949664]
[1763989524308,0.002,2811.7,2811.6,2.905483]
[1763989524990,0.002,2811.7,2811.6,0.85623773]
[1763989524991,0.4923,2811.7,2811.6,0.85623773]
[1763989525210,0.9486,2811.7,2811.6,0.11]
[1763989525403,0.9486,2811.7,2811.6,0.515504]
[1763989527634,0.9486,2811.7,2811.6,0.11]
[1763989531437,1.13459039,2811.7,2811.6,0.21]
[1763989531636,1.13459039,2811.7,2811.6,0.11]
[1763989533098,1.13459039,2811.7,2811.6,1.095604]
[1763989533099,0.18799039,2811.7,2811.6,1.095604]
[1763989533626,0.18799039,2811.7,2811.6,0.615504]
[1763989533627,0.67829039,2811.7,2811.6,0.615504]
[1763989534448,0.18719039,2811.7,2811.6,1.095604]
[1763989534855,0.18719039,2811.7,2811.6,1.581004]
[1763989535256,0.18719039,2811.7,2811.6,1.095604]
[1763989535559,0.67749039,2811.7,2811.6,0.515504]
[1763989535876,0.67749039,2811.7,2811.6,0.615504]
[1763989536173,1.13379039,2811.7,2811.6,0.615504]
[1763989538258,1.13379039,2811.7,2811.6,0.515504]
[1763989542277,1.13379039,2811.7,2811.6,0.11]
[1763989544486,2.35531509,2811.7,2811.6,0.11]
[1763989545543,1.46681598,2811.7,2811.6,0.11]
[1763989549592,0.67749039,2811.7,2811.6,0.515504]
[1763989549758,1.15619039,2811.7,2811.6,0.515504]
[1763989550645,1.15619039,2811.7,2811.6,0.11]
[1763989551381,1.48892937,2811.7,2811.6,0.11]
[1763989552648,1.48901186,2811.7,2811.6,0.11]
[1763989553349,9.04191252,2811.7,2811.6,0.11]
[1763989553681,10.73303028,2811.7,2811.6,0.11]
[1763989554206,0.90699264,2811.6,2811.5,0.001]
[1763989554409,2.00441411,2811.6,2811.5,0.001]
[1763989554705,2.00441411,2811.6,2811.0,0.001]
[1763989554706,0.476,2811.4,2811.0,0.001]
[1763989555009,1.20709264,2811.1,2811.0,0.001]
[1763989555185,1.53991411,2811.1,2811.0,0.001]
[1763989555383,2.01861411,2811.1,2811.0,0.001]
[1763989555799,1.11162147,2811.1,2811.0,0.001]
[1763989558107,1.11082147,2811.1,2811.0,0.001]
[1763989561016,0.2993,2811.1,2811.0,0.001]
[1763989561220,0.33254048,2811.3,2811.0,0.001]
[1763989561622,0.476,2811.1,2811.0,0.001]
[1763989562526,0.9547,2811.1,2811.0,0.001]
[1763989562826,0.476,2811.1,2811.0,0.001]
[1763989563621,0.9547,2811.1,2811.0,0.001]
[1763989564924,0.1860427,2811.2,2811.0,0.4756]
[1763989565092,0.1860427,2811.2,2811.1,0.4746]
[1763989565294,0.1860427,2811.2,2811.0,0.001]
[1763989565827,0.476,2811.1,2811.0,0.001]
[1763989566326,0.9547,2811.1,2811.0,0.001]
[1763989567891,0.476,2811.1,2811.0,0.001]
[1763989568828,0.1860427,2811.2,2811.0,0.001]
[1763989569033,0.1860427,2811.2,2811.1,0.4746]
[1763989570006,0.1860427,2811.2,2811.1,0.880104]
[1763989570201,0.1860427,2811.2,2811.1,0.980104]
[1763989570440,0.1860427,2811.2,2811.1,0.405504]
[1763989570646,0.6620427,2811.2,2811.1,0.405504]
[1763989570842,0.6620427,2811.2,2811.0,0.001]
[1763989571040,0.2985,2811.1,2811.0,0.001]
[1763989574128,0.7772,2811.1,2811.0,0.001]
[1763989575247,0.2985,2811.1,2811.0,0.001]
[1763989575628,0.7772,2811.1,2811.0,0.001]
[1763989577330,0.1860427,2811.2,2811.0,0.4756]
[1763989577517,0.51929171,2811.2,2811.0,0.4756]
[1763989577721,0.1860427,2811.2,2811.0,0.4756]
[1763989578448,0.51929171,2811.2,2811.0,0.4756]
[1763989578650,0.1860427,2811.2,2811.0,0.4756]
[1763989578845,0.1860427,2811.2,2811.0,0.001]
[1763989579052,0.476,2811.1,2811.0,0.001]
[1763989579545,0.9591,2811.1,2811.0,0.001]
[1763989580838,0.1860427,2811.2,2811.0,0.001]
[1763989581829,0.1852427,2811.2,2811.0,0.001]
[1763989583158,0.4927,2811.1,2811.0,0.001]
[1763989583358,0.82631967,2811.1,2811.0,0.001]
[1763989584363,0.4927,2811.1,2811.0,0.001]
[1763989585366,1.3094404,2811.1,2811.0,0.001]
[1763989585867,0.8263404,2811.1,2811.0,0.001]
[1763989587241,0.3336404,2811.1,2811.0,0.001]
[1763989588838,0.8263404,2811.1,2811.0,0.001]
[1763989589037,1.3094404,2811.1,2811.0,0.001]
[1763989589433,0.8263404,2811.1,2811.0,0.001]
[1763989590686,0.3336404,2811.1,2811.0,0.5008]
[1763989590847,0.3336404,2811.1,2811.0,0.001]
[1763989591585,0.3336404,2811.1,2811.0,0.5008]
[1763989591994,0.1872427,2811.2,2811.0,0.5008]
[1763989592154,0.1872427,2811.2,2811.1,0.905304]
[1763989592482,0.1872427,2811.2,2811.1,1.005304]
[1763989592483,0.002,2811.2,2811.1,1.005304]
[1763989592806,0.002,2811.2,2811.1,2.08038204]
[1763989593156,0.002,2811.2,2811.1,2.22293904]
[1763989593358,0.002,2811.2,2811.1,1.485304]
[1763989595672,0.002,2811.2,2811.1,5.04263031]
[1763989596489,0.0012,2811.7,2811.6,0.505504]
[1763989596789,0.0012,2811.7,2811.6,1.230304]
[1763989596992,0.0012,2811.7,2811.6,1.710304]
[1763989598395,0.0012,2811.7,2811.6,1.97203366]
[1763989602819,0.0012,2811.7,2811.6,0.86152966]
[1763989603024,0.0012,2811.7,2811.6,0.5998]
[1763989603189,0.0012,2811.7,2811.6,1.005304]
[1763989603390,0.0012,2811.7,2811.6,0.505504]
[1763989605129,0.0012,2811.7,2811.6,1.005304]
[1763989605327,0.0012,2811.7,2811.6,1.485304]
[1763989605621,0.0004,2811.7,2811.6,1.485304]
[1763989605822,0.0004,2811.7,2811.6,1.710304]
[1763989605988,0.0004,2811.7,2811.6,16.87085967]
[1763989606191,0.0004,2811.7,2811.6,16.83529274]
[1763989606825,0.0004,2811.7,2811.6,11.22616374]
[1763989607424,0.0004,2811.7,2811.6,10.42259674]
[1763989608898,0.5579542,2812.7,2811.8,0.405504]
[1763989609125,0.1892,2813.3,2812.7,0.405504]
[1763989609126,0.1858778,2813.0,2812.7,0.405504]
[1763989609327,0.1858778,2813.0,2812.9,1.004904]
[1763989609931,0.1858778,2813.0,2812.9,1.477104]
[1763989610344,0.1858778,2813.0,2812.9,1.004904]
[1763989611121,0.1858778,2813.0,2812.9,0.505504]
[1763989611855,0.1858778,2813.0,2812.9,1.002604]
[1763989612938,0.1858778,2813.0,2812.9,0.505504]
[1763989614059,0.6743778,2813.0,2812.9,0.505504]
[1763989614535,0.1858778,2813.0,2812.9,0.505504]
[1763989615154,0.6743778,2813.0,2812.9,0.405504]
[1763989616129,0.6743778,2813.0,2812.9,0.505504]
[1763989616549,0.1858778,2813.0,2812.9,0.505504]
[1763989616769,0.1858778,2813.0,2812.9,1.002604]
[1763989617361,0.6743778,2813.0,2812.9,0.405504]
[1763989617564,0.6743778,2813.0,2812.9,0.505504]
[1763989617781,0.1858778,2813.0,2812.9,1.002604]
[1763989618961,0.6743778,2813.0,2812.9,0.505504]
[1763989619365,0.1858778,2813.0,2812.9,1.002604]
[1763989619567,0.1858778,2813.0,2812.9,0.902604]
[1763989619767,0.1858778,2813.0,2812.9,1.002604]
[1763989619978,0.96022729,2815.1,2813.2,30.0]
[1763989620307,0.1944,2816.1,2813.0,0.405504]
[1763989620308,0.4703,2816.3,2815.8,0.405504]
[1763989620597,0.75180328,2816.8,2816.2,0.4888]
[1763989620909,0.18565789,2816.5,2816.4,0.505504]
[1763989621058,0.1944,2818.0,2816.5,0.405504]
[1763989621059,0.4703,2817.4,2816.5,0.405504]
[1763989621396,0.4703,2817.4,2817.3,0.1]
[1763989621891,0.1944,2818.0,2817.2,0.116]
[1763989622091,0.18558456,2817.8,2817.7,0.1]
[1763989622594,0.11609583,2818.4,2817.8,0.405504]
[1763989622790,0.18557414,2818.0,2817.8,0.405504]
[1763989622995,0.58639583,2818.4,2817.8,0.405504]
[1763989622996,0.11609583,2818.4,2818.3,0.976064]
[1763989623196,0.11609583,2818.4,2818.3,23.00723478]
[1763989623494,0.17879818,2821.2,2818.3,23.00723478]
[1763989623495,0.4703,2820.4,2819.1,0.405504]
[1763989623701,0.18542219,2820.0,2819.8,0.405504]
[1763989624014,0.4703,2820.4,2819.2,0.09416]
[1763989624193,0.4885,2819.5,2819.3,0.405504]
[1763989624409,0.4885,2819.5,2819.2,0.405504]
[1763989624611,0.9588,2819.5,2819.2,0.499664]
[1763989624907,0.4487,2819.3,2819.2,0.405504]
[1763989625296,0.4487,2819.3,2818.7,0.405504]
[1763989625297,0.919,2819.3,2818.7,0.405504]
[1763989625499,0.4881,2819.0,2818.7,0.405504]
[1763989625727,0.1944,2818.8,2818.7,0.405504]
[1763989626336,0.65575665,2819.5,2819.0,0.405504]
[1763989626649,0.4885,2819.1,2818.9,0.499664]
[1763989626794,0.4487,2819.0,2818.9,0.499664]
[1763989626996,0.4703,2819.4,2818.9,0.499664]
[1763989627623,0.4703,2819.4,2818.7,0.227]
[1763989627624,0.4703,2819.4,2819.2,0.405504]
[1763989627916,0.1944,2819.9,2819.5,0.405504]
[1763989627917,0.4703,2819.7,2819.5,0.405504]
[1763989628293,0.4885,2819.6,2819.5,0.405504]
[1763989628699,0.9588,2819.6,2819.5,0.405504]
[1763989628911,0.37985124,2819.9,2819.5,0.405504]
[1763989629134,0.4885,2819.6,2819.4,0.09416]
[1763989629430,0.4479,2819.5,2819.2,0.405504]
[1763989629634,0.1944,2819.9,2819.2,0.405504]
[1763989629635,0.4703,2820.5,2819.7,0.405504]
[1763989630012,0.4703,2820.5,2819.3,0.09416]
[1763989630013,0.6829,2819.8,2819.3,0.09416]
[1763989630197,0.4479,2819.7,2818.9,0.4703]
[1763989630399,0.4479,2819.7,2819.2,0.405504]
[1763989630594,0.4479,2819.7,2819.6,0.405504]
[1763989631200,0.9182,2819.7,2819.6,0.405504]
[1763989631401,7.29230078,2821.3,2818.9,0.4703]
[1763989631402,0.4703,2820.3,2819.7,0.405504]
[1763989631626,0.1944,2821.3,2819.1,0.09416]
[1763989631627,0.4885,2819.8,2819.1,0.09416]
[1763989631935,0.4885,2819.8,2819.2,0.499664]
[1763989632131,0.4703,2819.7,2819.2,0.499664]
[1763989632332,0.4703,2819.7,2819.2,0.405504]
[1763989632501,0.1944,2819.9,2819.5,0.405504]
[1763989632695,0.6647,2819.9,2819.5,0.405504]
[1763989632898,0.18542282,2820.3,2819.7,0.405504]
[1763989633134,0.18542282,2820.3,2820.0,0.405504]
[1763989633298,0.4703,2820.2,2819.6,0.405504]
[1763989633498,0.6423,2819.7,2819.6,0.405504]
[1763989633899,0.4703,2820.2,2819.6,0.405504]
[1763989634096,0.1944,2819.9,2819.6,0.405504]
[1763989634323,0.1944,2819.9,2819.5,0.405504]
[1763989634532,0.6647,2819.9,2819.5,0.405504]
[1763989634733,0.6647,2819.9,2819.1,0.227]
[1763989634734,0.6647,2819.9,2819.7,0.405504]
[1763989634934,0.1944,2819.9,2819.7,0.405504]
[1763989635543,0.4703,2820.2,2819.3,0.405504]
[1763989635544,0.4703,2820.2,2819.9,0.09416]
[1763989635709,0.18542282,2820.3,2819.4,0.405504]
[1763989635909,0.1944,2821.3,2820.3,0.405504]
[1763989635910,0.4703,2820.7,2820.3,0.405504]
[1763989636122,0.4703,2820.7,2820.5,0.405504]
[1763989636450,0.65568029,2820.7,2820.5,0.405504]
[1763989636747,0.18538029,2820.7,2820.6,0.09416]
[1763989636947,0.1944,2821.3,2820.7,0.405504]
[1763989637116,0.1944,2821.3,2820.4,0.227]
[1763989637117,0.4703,2821.2,2820.8,0.09416]
[1763989637320,0.1944,2821.3,2820.5,0.405504]
[1763989637321,0.6829,2820.9,2820.6,0.09416]
[1763989637521,0.4885,2820.7,2820.6,0.09416]
[1763989638048,0.1944,2820.9,2820.5,0.405504]
[1763989638252,0.1944,2820.9,2818.1,3.54838979]
[1763989638253,0.4479,2820.6,2820.3,0.09416]
[1763989638421,0.4479,2820.6,2819.8,0.3562]
[1763989638422,0.4881,2820.5,2820.0,0.09416]
[1763989638818,0.9584,2820.5,2820.0,0.09416]
[1763989639131,0.4703,2820.8,2819.9,0.09416]
[1763989639331,0.4703,2820.5,2820.1,0.09416]
[1763989640214,0.4703,2820.5,2819.9,0.405504]
[1763989640427,0.4703,2820.5,2820.3,0.09416]
[1763989640758,0.4703,2820.5,2819.9,0.405504]
[1763989640759,0.1944,2820.9,2820.7,0.405504]
[1763989640921,0.6538,2820.9,2820.6,0.09416]
[1763989641125,0.4566,2820.7,2820.4,0.09416]
[1763989641559,0.4566,2820.5,2820.4,0.09416]
[1763989641749,0.6538,2820.9,2820.0,0.3612]
[1763989642060,0.1944,2820.9,2820.7,0.09416]
[1763989642364,0.1944,2820.9,2820.5,0.09416]
[1763989642565,0.1944,2820.9,2820.2,0.405504]
[1763989642566,0.1944,2821.3,2820.9,0.09416]
[1763989642764,0.4594,2821.2,2820.9,0.09416]